bitfinex-derivatives/quotes_SOLF0:USTF0_20250923
["timestamp","ask_amount","ask_price","bid_price","bid_amount"]
[1758663178634,3.22,215.77,215.74,11.04861052]
[1758663178825,3.22,215.77,215.75,3.61861052]
[1758663179135,110.3,215.8,215.74,7.43]
[1758663179327,3.22,215.79,215.75,3.62079495]
[1758663179526,3.22,215.79,215.7,11.29065223]
[1758663179728,3.22,215.79,215.71,3.62079903]
[1758663180031,7.3901,215.76,215.73,7.43]
[1758663180231,3.22,215.75,215.74,3.62079903]
[1758663180431,3.22,215.83,215.74,11.05079903]
[1758663180631,3.22,215.81,215.75,3.62079903]
[1758663180832,114.06,215.8,215.74,7.43]
[1758663181134,114.06,215.8,215.75,3.62187225]
[1758663181326,3.22,215.77,215.74,7.43]
[1758663181526,3.22,215.77,215.75,3.62191158]
[1758663181727,3.22,215.77,215.74,7.43]
[1758663181925,3.22,215.76,215.75,3.62070551]
[1758663186637,7.3895,215.79,215.76,7.43]
[1758663186832,114.04,215.78,215.76,7.43]
[1758663187034,114.04,215.78,215.72,7.43]
[1758663187337,3.22,215.77,215.74,7.43]
[1758663187639,3.22,215.77,215.75,3.62025097]
[1758663187833,3.22,215.77,215.76,3.62025097]
[1758663189839,4.1693,215.8,215.76,3.62025097]
[1758663190040,114.04,215.79,215.77,7.43]
[1758663190539,4.1695,215.79,215.77,7.43]
[1758663190742,114.04,215.78,215.77,7.43]
[1758663190942,114.04,215.78,215.77,3.62117796]
[1758663191139,114.04,215.78,215.77,11.05117796]
[1758663191335,4.1691,215.81,215.78,7.43]
[1758663191542,118.2091,215.81,215.74,7.43]
[1758663191746,118.2091,215.81,215.75,3.62074291]
[1758663192047,118.2091,215.81,215.77,7.21]
[1758663192250,118.2091,215.81,215.79,7.21]
[1758663193046,121.4291,215.81,215.75,7.21]
[1758663193253,121.4291,215.81,215.77,7.21]
[1758663193447,121.4291,215.81,215.78,3.62362616]
[1758663193750,121.4291,215.81,215.77,7.21]
[1758663194051,4.1693,215.8,215.78,3.62356915]
[1758663194249,4.1693,215.8,215.77,7.21]
[1758663194451,4.1693,215.8,215.78,3.62470454]
[1758663194651,4.1693,215.8,215.77,7.21]
[1758663194856,4.1693,215.8,215.78,3.62470553]
[1758663195051,4.1693,215.8,215.77,7.21]
[1758663195252,4.1693,215.8,215.78,3.62575953]
[1758663195554,114.04,215.81,215.74,7.21]
[1758663195753,114.04,215.81,215.75,3.62547072]
[1758663195954,114.04,215.81,215.77,7.21]
[1758663196153,114.04,215.81,215.79,7.21]
[1758663196856,4.1689,215.82,215.75,7.21]
[1758663197056,117.24,215.81,215.77,7.21]
[1758663197351,117.24,215.81,215.78,3.62465072]
[1758663197654,4.1693,215.8,215.79,3.62465072]
[1758663198258,3.22,215.81,215.79,3.62465072]
[1758663198561,117.24,215.81,215.75,7.21]
[1758663198860,121.4091,215.81,215.77,7.21]
[1758663199061,121.4091,215.81,215.78,3.62393855]
[1758663199258,121.4091,215.81,215.79,3.62393855]
[1758663199451,121.4091,215.81,215.77,7.21]
[1758663199653,121.4091,215.81,215.78,3.62350851]
[1758663199855,121.4091,215.81,215.79,3.62350851]
[1758663200055,121.4091,215.81,215.77,7.21]
[1758663200258,121.4091,215.81,215.78,3.62334757]
[1758663200458,121.4091,215.81,215.79,3.62334757]
[1758663200662,121.4091,215.81,215.77,7.21]
[1758663200854,121.4091,215.81,215.78,3.62326726]
[1758663201049,3.22,215.8,215.79,3.62326726]
[1758663204461,3.22,215.8,215.77,7.21]
[1758663204662,3.22,215.8,215.78,3.6257439]
[1758663204859,3.22,215.8,215.79,3.6257439]
[1758663205166,3.22,215.8,215.77,7.21]
[1758663205364,114.02,215.81,215.79,7.68]
[1758663205560,114.02,215.81,215.75,7.68]
[1758663205859,114.02,215.81,215.76,3.62529753]
[1758663206066,117.24,215.81,215.77,11.30529753]
[1758663206262,117.24,215.81,215.78,3.62529753]
[1758663206463,3.22,215.8,215.79,3.62529753]
[1758663207068,3.22,215.83,215.8,7.68]
[1758663207265,114.0,215.82,215.8,7.68]
[1758663207465,117.22,215.82,215.8,7.68]
[1758663207868,3.22,215.87,215.8,7.68]
[1758663208164,114.0,215.86,215.8,7.68]
[1758663208563,3.22,215.85,215.81,3.62377645]
[1758663208757,13.96457777,215.86,215.82,3.62339875]
[1758663208965,114.0,215.85,215.78,7.68]
[1758663209163,114.0,215.85,215.8,7.68]
[1758663209364,114.0,215.85,215.82,7.68]
[1758663209561,13.96457777,215.86,215.78,7.68]
[1758663209766,61.80457777,215.86,215.8,7.68]
[1758663209964,61.80457777,215.86,215.81,3.62185992]
[1758663210263,61.80457777,215.86,215.83,7.68]
[1758663210469,65.02457777,215.86,215.83,7.68]
[1758663210858,61.80457777,215.86,215.79,7.68]
[1758663211058,13.96457777,215.86,215.8,3.62197412]
[1758663211257,13.96457777,215.86,215.82,7.68]
[1758663211459,13.96457777,215.86,215.83,11.30197412]
[1758663211663,13.96457777,215.86,215.83,7.68]
[1758663212165,17.18457777,215.86,215.83,7.68]
[1758663212467,17.18457777,215.86,215.79,7.68]
[1758663212663,17.18457777,215.86,215.81,7.68]
[1758663212971,3.22,215.86,215.82,3.61976696]
[1758663213166,3.22,215.86,215.84,7.68]
[1758663213663,113.98,215.87,215.84,7.68]
[1758663213870,3.22,215.86,215.79,4.1693]
[1758663214067,3.22,215.86,215.8,11.29885604]
[1758663214267,113.98,215.87,215.81,11.29885604]
[1758663214571,113.98,215.87,215.82,3.61885604]
[1758663214768,113.98,215.87,215.83,3.61749502]
[1758663214971,117.2,215.87,215.84,7.68]
[1758663216970,117.2,215.87,215.8,7.68]
[1758663217275,117.2,215.87,215.81,3.61577428]
[1758663217472,117.2,215.87,215.83,7.68]
[1758663219073,3.22,215.86,215.83,7.68]
[1758663219572,3.22,215.86,215.8,7.68]
[1758663219774,3.22,215.86,215.81,3.61448126]
[1758663220075,3.22,215.86,215.83,7.68]
[1758663221078,3.22,215.86,215.8,7.68]
[1758663221377,3.22,215.86,215.81,3.61368271]
[1758663221572,3.22,215.86,215.83,7.68]
[1758663223883,4.168,215.87,215.83,7.68]
[1758663224077,3.22,215.86,215.83,7.68]
[1758663224577,3.22,215.86,215.77,3.86123176]
[1758663224578,3.22,215.86,215.81,7.68]
[1758663224882,131.22887423,215.88,215.82,3.61913997]
[1758663225083,131.22887423,215.88,215.8,7.68]
[1758663225281,131.22887423,215.88,215.81,3.61899876]
[1758663225580,131.22887423,215.88,215.82,3.61899876]
[1758663225782,131.22887423,215.88,215.8,7.68]
[1758663225783,4.168,215.87,215.8,7.68]
[1758663225984,3.22,215.86,215.81,3.61900112]
[1758663226186,3.22,215.86,215.79,7.68]
[1758663226386,3.22,215.86,215.8,3.61932584]
[1758663226590,4.168,215.87,215.81,3.61932584]
[1758663226787,7.388,215.87,215.81,7.68]
[1758663227184,4.168,215.87,215.82,3.62023379]
[1758663227385,4.168,215.87,215.83,7.68]
[1758663227582,3.22,215.86,215.83,7.68]
[1758663230793,3.22,215.86,215.8,4.1691]
[1758663230996,3.22,215.86,215.81,3.62201113]
[1758663231192,3.22,215.86,215.82,3.62201113]
[1758663231391,3.22,215.86,215.8,4.1691]
[1758663231595,127.96887423,215.88,215.82,7.68]
[1758663232988,131.18887423,215.88,215.84,7.68]
[1758663233189,131.18887423,215.88,215.83,7.31]
[1758663233391,127.96887423,215.88,215.82,4.1688]
[1758663233698,3.2,215.87,215.84,7.31]
[1758663234388,113.9,215.89,215.84,7.31]
[1758663234798,3.2,215.88,215.84,7.31]
[1758663234997,113.9,215.89,215.84,7.31]
[1758663235296,3.2,215.86,215.84,7.31]
[1758663235996,7.368,215.87,215.79,7.31]
[1758663236196,7.368,215.87,215.81,7.31]
[1758663236495,3.2,215.86,215.83,7.31]
[1758663236896,3.2,215.86,215.78,11.16399402]
[1758663237095,3.2,215.86,215.8,7.31]
[1758663237297,3.2,215.87,215.81,10.93599238]
[1758663237497,113.9,215.89,215.82,3.62599238]
[1758663237698,113.9,215.89,215.83,3.62599238]
[1758663237997,3.2,215.88,215.79,7.31]
[1758663238299,3.2,215.88,215.81,7.31]
[1758663238595,3.2,215.88,215.82,3.62645967]
[1758663238897,3.2,215.86,215.83,10.93645967]
[1758663239098,3.2,215.86,215.83,7.31]
[1758663239398,117.1,215.89,215.8,7.31]
[1758663239599,117.1,215.89,215.82,7.31]
[1758663239798,117.1,215.89,215.83,3.62671248]
[1758663239999,4.1678,215.88,215.82,7.31]
[1758663240203,4.1678,215.88,215.83,10.93671248]
[1758663240496,3.2,215.86,215.84,3.62671248]
[1758663240697,3.2,215.86,215.79,3.85399402]
[1758663240997,7.368,215.87,215.81,7.31]
[1758663241198,3.2,215.86,215.82,3.62738099]
[1758663241396,3.2,215.86,215.83,3.62864138]
[1758663241693,3.2,215.85,215.84,3.62864138]
[1758663242698,4.1681,215.86,215.79,11.4792]
[1758663242999,4.1681,215.86,215.8,3.6294735]
[1758663243199,4.1681,215.86,215.81,3.6294735]
[1758663243399,7.3681,215.86,215.82,3.6294735]
[1758663243595,7.3681,215.86,215.84,7.31]
[1758663244999,7.3681,215.86,215.8,7.31]
[1758663245199,16.745891,215.89,215.82,7.31]
[1758663245399,16.745891,215.89,215.83,3.63068757]
[1758663245596,4.1682,215.85,215.82,7.31]
[1758663245800,113.88,215.86,215.77,7.31]
[1758663246002,3.2,215.85,215.78,3.63297496]
[1758663246200,3.2,215.85,215.79,3.63297496]
[1758663246400,4.1687,215.83,215.8,3.63297496]
[1758663246607,3.2,215.82,215.76,7.31]
[1758663246903,3.2,215.82,215.78,7.31]
[1758663247103,3.2,215.8,215.79,3.63297994]
[1758663248201,3.2,215.84,215.79,3.63297994]
[1758663248406,117.08,215.84,215.81,7.31]
[1758663248606,3.2,215.83,215.81,7.31]
[1758663249606,3.2,215.83,215.77,7.31]
[1758663249801,7.3682,215.86,215.79,7.31]
[1758663250006,68.0442,215.84,215.8,3.63055218]
[1758663250209,64.8442,215.84,215.73,7.31]
[1758663250506,3.2,215.83,215.74,3.63053832]
[1758663250707,3.2,215.78,215.75,3.63053832]
[1758663250909,3.2,215.78,215.76,3.63053832]
[1758663251206,3.2,215.78,215.77,3.63053832]
[1758663251702,113.88,215.8,215.77,10.94053832]
[1758663251908,113.88,215.8,215.78,3.63053832]
[1758663252206,113.88,215.8,215.77,7.31]
[1758663252406,3.23,215.82,215.78,11.06859368]
[1758663252601,46.28,215.83,215.78,7.44]
[1758663252803,3.23,215.82,215.79,3.62816717]
[1758663253006,3.23,215.82,215.78,7.44]
[1758663253507,3.23,215.82,215.79,3.62304065]
[1758663253709,50.4488,215.83,215.78,7.44]
[1758663253905,50.4488,215.83,215.79,3.62303059]
[1758663254107,3.23,215.82,215.78,7.44]
[1758663254311,50.4488,215.83,215.78,7.44]
[1758663254610,3.23,215.82,215.78,7.44]
[1758663254809,3.23,215.82,215.74,7.44]
[1758663255009,3.23,215.82,215.75,3.62234068]
[1758663255210,3.23,215.82,215.76,11.06234068]
[1758663255400,53.6788,215.83,215.77,3.62234068]
[1758663255600,3.23,215.82,215.78,11.06234068]
[1758663255799,50.4488,215.83,215.78,7.44]
[1758663256107,3.23,215.81,215.78,7.44]
[1758663259516,3.23,215.81,215.74,7.44]
[1758663259716,3.23,215.81,215.75,3.61929184]
[1758663259914,3.23,215.81,215.77,7.44]
[1758663260114,3.23,215.81,215.79,7.44]
[1758663262318,3.23,215.81,215.74,7.44]
[1758663262518,3.23,215.81,215.75,3.62061566]
[1758663262721,3.23,215.81,215.77,7.44]
[1758663263026,3.23,215.8,215.78,3.62061566]
[1758663263222,3.23,215.8,215.74,7.44]
[1758663263423,3.23,215.8,215.75,3.62163288]
[1758663263623,3.23,215.8,215.76,3.62163288]
[1758663263823,3.23,215.8,215.78,7.57]
[1758663266529,4.1692,215.81,215.78,7.57]
[1758663267129,4.1692,215.81,215.73,8.02772936]
[1758663267330,4.1692,215.81,215.75,7.57]
[1758663267530,4.1692,215.81,215.76,3.62089312]
[1758663267729,7.3992,215.81,215.78,7.57]
[1758663268028,3.23,215.8,215.74,7.57]
[1758663268227,3.23,215.83,215.75,3.62137058]
[1758663268530,4.1694,215.8,215.76,3.62137058]
[1758663268729,7.3994,215.8,215.72,7.57]
[1758663268930,3.23,215.8,215.74,7.57]
[1758663269133,3.23,215.83,215.75,3.6213233]
[1758663269433,3.23,215.83,215.76,3.6213233]
[1758663269628,3.23,215.83,215.74,7.57]
[1758663269829,4.1695,215.79,215.75,3.62060425]
[1758663270030,3.23,215.78,215.76,3.62060425]
[1758663270236,3.23,215.78,215.75,7.57]
[1758663270535,3.23,215.78,215.76,3.62049212]
[1758663270737,3.23,215.78,215.75,7.57]
[1758663270933,4.1697,215.78,215.75,7.57]
[1758663271133,3.23,215.77,215.75,7.57]
[1758663272035,3.23,215.77,215.71,7.57]
[1758663272235,3.23,215.81,215.73,7.57]
[1758663272535,3.23,215.81,215.74,3.61999705]
[1758663272731,64.8512,215.82,215.73,7.57]
[1758663273034,3.23,215.76,215.71,7.57]
[1758663273246,3.23,215.75,215.72,11.18988267]
[1758663273435,3.23,215.75,215.73,3.61918643]
[1758663273635,3.23,215.75,215.72,7.57]
[1758663273935,3.23,215.75,215.73,3.61918643]
[1758663274239,3.23,215.75,215.69,7.57]
[1758663274534,3.23,215.75,215.71,7.57]
[1758663274831,7.4003,215.75,215.72,11.18884211]
[1758663275035,7.4003,215.75,215.73,3.61884211]
[1758663275336,7.4003,215.75,215.72,7.57]
[1758663276031,64.8442,215.84,215.68,7.57]
[1758663276236,86.5895113,215.89,215.67,3.85732936]
[1758663276237,3.23,215.83,215.71,7.57]
[1758663276433,3.23,215.83,215.73,7.57]
[1758663276637,3.23,215.83,215.74,3.61815004]
[1758663276836,3.23,215.83,215.75,3.61815004]
[1758663277038,3.23,215.83,215.76,3.61815004]
[1758663277238,3.23,215.83,215.73,7.57]
[1758663277537,3.23,215.83,215.74,3.61656077]
[1758663277731,3.23,215.83,215.75,3.61656077]
[1758663277930,7.3993,215.8,215.77,7.57]
[1758663286547,3.23,215.79,215.77,7.57]
[1758663286748,4.1693,215.8,215.77,7.57]
[1758663286947,7.3993,215.8,215.77,7.57]
[1758663287448,7.3995,215.79,215.73,7.57]
[1758663287649,3.23,215.78,215.75,7.57]
[1758663287849,3.23,215.78,215.76,3.6235199]
[1758663288045,3.23,215.78,215.77,3.6235199]
[1758663289550,3.23,215.77,215.74,7.57]
[1758663289747,3.23,215.77,215.75,11.1963076]
[1758663289952,3.23,215.77,215.76,3.6263076]
[1758663292859,4.1697,215.78,215.76,11.1963076]
[1758663293160,7.3993,215.8,215.77,11.197209]
[1758663293355,4.1693,215.8,215.77,7.57]
[1758663293555,3.22,215.79,215.77,7.57]
[1758663294259,7.3895,215.79,215.77,7.57]
[1758663294761,64.8497,215.82,215.73,7.52]
[1758663295063,3.22,215.81,215.74,3.62874265]
[1758663295364,3.22,215.81,215.75,3.62874265]
[1758663295555,3.22,215.81,215.76,3.62874265]
[1758663295861,3.22,215.79,215.73,7.52]
[1758663296060,3.22,215.79,215.74,3.62924775]
[1758663296256,113.84,215.8,215.75,3.62924775]
[1758663296454,3.22,215.79,215.76,3.62924775]
[1758663296656,3.22,215.79,215.72,7.52]
[1758663296857,3.22,215.79,215.73,3.62947704]
[1758663297058,113.84,215.8,215.74,3.62947704]
[1758663297367,7.3901,215.76,215.75,3.62947704]
[1758663298465,4.1704,215.74,215.72,7.52]
[1758663299366,7.3901,215.76,215.72,7.52]
[1758663299561,3.22,215.75,215.72,7.52]
[1758663299972,4.1705,215.74,215.72,7.52]
[1758663300162,4.1705,215.74,215.69,3.85732936]
[1758663300465,4.1705,215.74,215.69,7.52]
[1758663300960,4.1705,215.74,215.68,3.85732936]
[1758663301465,4.1705,215.74,215.68,3.86372444]
[1758663301659,3.22,215.75,215.69,7.52]
[1758663303765,113.84,215.8,215.69,7.52]
[1758663303971,113.82,215.79,215.7,7.52]
[1758663304166,117.04,215.79,215.7,7.52]
[1758663304871,4.1699,215.77,215.7,7.52]
[1758663305763,7.3895,215.79,215.7,7.52]
[1758663305976,50.58,215.8,215.72,7.52]
[1758663306568,3.22,215.82,215.72,7.52]
[1758663306768,113.82,215.8,215.72,7.52]
[1758663307169,117.04,215.8,215.72,7.52]
[1758663307470,4.1697,215.78,215.72,7.52]
[1758663308169,3.22,215.78,215.71,7.52]
[1758663309866,4.1701,215.76,215.71,7.52]
[1758663310470,4.1701,215.76,215.73,7.52]
[1758663310668,4.1701,215.76,215.74,11.13111279]
[1758663310868,4.1701,215.76,215.75,3.61111279]
[1758663311774,7.3897,215.78,215.75,11.13111279]
[1758663311972,7.3897,215.78,215.75,7.52]
[1758663312374,7.3897,215.78,215.76,3.61119605]
[1758663312675,7.3897,215.78,215.75,7.52]
[1758663312874,7.3897,215.78,215.76,3.61129037]
[1758663313070,7.3992,215.81,215.78,7.23]
[1758663313276,7.3992,215.81,215.73,7.23]
[1758663313574,7.3992,215.81,215.75,7.23]
[1758663313775,7.3992,215.81,215.76,3.6109598]
[1758663313968,7.3992,215.81,215.78,7.23]
[1758663314168,3.23,215.81,215.73,8.03422444]
[1758663314474,3.23,215.81,215.74,10.84014504]
[1758663314673,3.23,215.81,215.75,3.61014504]
[1758663314873,3.23,215.81,215.77,7.23]
[1758663315172,3.23,215.81,215.78,10.84014504]
[1758663315371,3.23,215.81,215.78,7.23]
[1758663315974,4.1693,215.8,215.78,7.23]
[1758663317876,4.1693,215.8,215.73,3.85910667]
[1758663318175,4.1693,215.8,215.74,3.60950515]
[1758663318378,3.23,215.81,215.76,7.23]
[1758663318566,3.23,215.81,215.78,7.23]
[1758663319976,3.23,215.8,215.73,3.85910667]
[1758663320179,3.23,215.8,215.74,10.83935451]
[1758663320372,3.23,215.81,215.75,10.83935451]
[1758663320671,113.82,215.82,215.77,7.23]
[1758663320873,113.82,215.82,215.78,3.60935451]
[1758663321075,4.1694,215.8,215.78,7.23]
[1758663322174,4.1694,215.8,215.73,3.85910667]
[1758663322380,4.1694,215.8,215.75,7.23]
[1758663322575,4.1694,215.8,215.77,7.23]
[1758663322781,4.1694,215.8,215.78,10.83881335]
[1758663323082,7.3994,215.8,215.78,7.23]
[1758663323274,7.3994,215.8,215.74,7.23]
[1758663323470,3.23,215.79,215.76,7.23]
[1758663323679,3.23,215.79,215.77,3.60874366]
[1758663323981,3.23,215.79,215.78,3.60874366]
[1758663324982,4.1694,215.8,215.78,3.60874366]
[1758663325182,4.1694,215.8,215.76,7.23]
[1758663325383,4.1694,215.8,215.77,10.83870046]
[1758663325681,4.1694,215.8,215.78,10.83870046]
[1758663325882,7.3994,215.8,215.78,7.23]
[1758663327585,4.1694,215.8,215.73,3.85910667]
[1758663327784,4.1694,215.8,215.74,10.83927982]
[1758663328084,7.3994,215.8,215.76,7.23]
[1758663328285,7.3994,215.8,215.77,10.83927982]
[1758663328481,117.9888,215.82,215.79,7.23]
[1758663328784,4.1688,215.82,215.74,7.23]
[1758663329086,4.1688,215.82,215.76,7.23]
[1758663329286,4.1688,215.82,215.78,7.23]
[1758663329486,4.1688,215.82,215.8,7.23]
[1758663329987,113.76,215.86,215.76,7.23]
[1758663330187,113.76,215.86,215.78,7.23]
[1758663330384,4.1682,215.86,215.8,7.23]
[1758663330685,4.1682,215.86,215.82,7.23]
[1758663330988,4.1682,215.86,215.78,7.23]
[1758663331290,4.1682,215.86,215.8,7.23]
[1758663331475,4.1682,215.86,215.82,7.23]
[1758663331679,4.1682,215.86,215.77,7.23]
[1758663331884,4.1682,215.86,215.79,7.23]
[1758663332084,4.1682,215.86,215.81,7.23]
[1758663332383,4.1682,215.86,215.78,4.1695]
[1758663332384,4.1682,215.86,215.79,7.23]
[1758663332578,4.1682,215.86,215.81,7.23]
[1758663332783,4.1682,215.86,215.79,7.23]
[1758663333089,4.1682,215.86,215.8,3.60677729]
[1758663333277,4.1682,215.86,215.81,3.60677729]
[1758663333482,4.1682,215.86,215.79,7.23]
[1758663333686,4.1682,215.86,215.8,3.60593613]
[1758663333992,4.1677,215.88,215.82,7.23]
[1758663334188,4.1677,215.88,215.84,7.23]
[1758663334389,4.1677,215.88,215.79,7.23]
[1758663334586,13.96160799,215.89,215.82,7.23]
[1758663334791,4.1673,215.9,215.84,7.23]
[1758663336889,18.2390383,215.9,215.84,7.23]
[1758663337590,14.0717383,215.9,215.84,7.23]
[1758663337789,113.74,215.91,215.84,7.23]
[1758663337983,7.397,215.92,215.84,7.23]
[1758663338185,94.74,215.94,215.86,7.23]
[1758663338886,108.90774062,215.94,215.87,3.59532073]
[1758663339186,113.07434062,215.94,215.85,7.23]
[1758663339386,113.07434062,215.94,215.87,7.23]
[1758663340391,0.80642358,215.97,215.87,7.23]
[1758663340693,3.23,216.0,215.89,7.23]
[1758663340900,16.83286235,216.0,215.89,7.23]
[1758663341694,13.60286235,216.0,215.89,7.23]
[1758663341894,81.21810873,216.02,215.89,7.23]
[1758663342094,7.3961,215.97,215.89,7.23]
[1758663346292,3.23,215.97,215.9,7.23]
[1758663346493,17.0125109,216.0,215.9,7.23]
[1758663347891,4.1657,215.99,215.9,7.23]
[1758663349294,3.23,215.98,215.9,7.23]
[1758663352094,3.23,215.97,215.9,7.23]
[1758663352593,4.1657,215.99,215.9,7.23]
[1758663352991,7.3957,215.99,215.9,7.23]
[1758663355294,4.1657,215.99,215.9,7.23]
[1758663356201,4.1657,215.99,215.9,11.3971]
[1758663356400,4.1657,215.99,215.91,7.29]
[1758663358396,4.1657,215.99,215.91,4.1669]
[1758663358600,4.1657,215.99,215.92,7.29]
[1758663362997,3.23,216.0,215.92,7.29]
[1758663364002,7.3955,216.0,215.92,7.29]
[1758663365603,7.3955,216.0,215.92,4.1668]
[1758663365801,7.3955,216.0,215.93,7.29]
[1758663370005,7.395,216.02,215.94,4.1665]
[1758663370208,7.395,216.02,215.95,7.29]
[1758663375610,3.24,216.02,215.9,7.54]
[1758663375816,3.24,216.02,215.91,3.59299537]
[1758663376008,3.24,216.02,215.92,11.13299537]
[1758663376210,13.5746263,216.03,215.94,7.54]
[1758663376416,3.24,216.04,215.96,7.54]
[1758663379920,17.30261941,216.04,215.96,7.54]
[1758663381317,17.30261941,216.04,215.97,3.60051532]
[1758663381520,3.24,216.03,215.96,7.54]
[1758663381817,7.4048,216.03,215.97,3.60017399]
[1758663382023,7.4048,216.03,215.96,7.54]
[1758663382321,7.4048,216.03,215.97,3.60017398]
[1758663382522,3.24,216.02,215.98,11.14017398]
[1758663382723,3.24,216.01,215.98,7.54]
[1758663383021,4.1648,216.03,215.94,7.54]
[1758663383223,4.1648,216.03,215.96,7.52]
[1758663383422,4.1648,216.03,215.97,3.60211423]
[1758663383624,3.21,216.02,215.99,7.52]
[1758663384927,4.1644,216.05,215.96,7.52]
[1758663385227,4.1644,216.05,215.98,7.52]
[1758663386521,4.1644,216.05,215.95,4.1662]
[1758663386522,4.1644,216.05,216.0,7.52]
[1758663386729,4.1644,216.05,215.96,7.52]
[1758663387029,4.1644,216.05,215.98,7.52]
[1758663387224,4.1644,216.05,215.99,3.6023803]
[1758663387427,0.46616487,216.1,215.95,7.52]
[1758663387428,3.21,216.03,215.95,7.52]
[1758663387631,3.21,216.03,215.96,3.60375799]
[1758663387930,3.21,216.03,215.97,3.60375799]
[1758663388230,3.21,216.03,215.95,7.52]
[1758663388430,3.21,216.03,215.96,3.60349779]
[1758663388629,3.21,216.03,215.97,3.60349779]
[1758663388826,4.1655,216.0,215.92,3.81892617]
[1758663389033,4.1655,216.0,215.93,11.12365397]
[1758663389223,4.1655,216.0,215.94,3.60365397]
[1758663389428,7.3755,216.0,215.96,7.52]
[1758663389629,7.3755,216.0,215.97,11.12365397]
[1758663389829,7.3755,216.0,215.97,7.52]
[1758663393036,4.165,216.02,215.93,7.52]
[1758663393235,4.165,216.02,215.95,7.52]
[1758663393435,4.165,216.02,215.96,3.60372818]
[1758663393636,3.21,216.01,215.98,7.52]
[1758663396337,4.165,216.02,215.94,7.52]
[1758663396538,4.165,216.02,215.96,7.52]
[1758663396733,7.375,216.02,215.98,7.52]
[1758663396938,7.375,216.02,215.94,7.52]
[1758663397137,7.375,216.02,215.96,7.52]
[1758663397340,7.375,216.02,215.98,7.52]
[1758663397542,7.375,216.02,215.99,3.60666461]
[1758663397740,7.375,216.02,215.98,7.52]
[1758663397936,7.375,216.02,215.99,3.60689921]
[1758663398141,7.375,216.02,215.98,7.52]
[1758663398442,7.375,216.02,215.99,3.60689921]
[1758663398642,7.375,216.02,215.98,7.52]
[1758663398842,7.375,216.02,215.99,3.6070635]
[1758663399143,7.375,216.02,215.98,7.52]
[1758663399341,7.375,216.02,215.99,11.1270635]
[1758663399539,7.375,216.02,215.99,7.52]
[1758663401740,4.165,216.02,215.94,3.81892617]
[1758663401946,4.165,216.02,215.96,7.52]
[1758663402146,4.165,216.02,215.98,7.52]
[1758663402350,4.165,216.02,216.0,7.52]
[1758663402544,3.21,216.04,215.96,7.52]
[1758663402739,3.21,216.04,215.98,7.52]
[1758663402941,3.21,216.05,215.99,11.12789856]
[1758663403139,3.21,216.05,216.0,3.60789856]
[1758663403340,3.21,216.05,215.99,7.52]
[1758663403646,3.21,216.05,216.0,3.62462888]